Cogmind - Beta 13 @@@ ROGUE MODE // 2024.04.09 @ 19:19:53 Player: Ben Meat Bible Result: Destroyed by P-60 Hacker with Shock Rifle Performance ------------- Evolutions (2) 1000 Regions Visited (5) 1000 Robots Destroyed (36) 180 Value Destroyed (485) 485 Prototype IDs (3) 60 Alien Tech Used (0) 0 Bonus (224) 224 TOTAL SCORE: 2949 Bonus ------- High Alert Combat Kills 24 Entered Garrisons 200 Cogmind --------- Core Integrity 0/550 Matter 270/300 Energy 65/100 System Corruption 6% Temperature Cool (0) Movement Flying (40) Location -8/Garrison Parts ------- > --- POWER (1) -------- (None) > --- PROPULSION (4) --- Flight Unit > --- UTILITY (4) ------ Visual Processing Unit Signal Interpreter > --- WEAPON (2) ------- Light Assault Rifle > --- INVENTORY (5) ---- Ion Engine Small Storage Unit Remote Datajack Peak State ------------ > --- POWER ------------ Light Ion Engine > --- PROPULSION ------- Flight Unit Flight Unit Flight Unit Improved Flight Unit > --- UTILITY ---------- Visual Processing Unit Signal Interpreter Improved Terrain Scanner > --- WEAPON ----------- Improved Medium Laser Improved Assault Rifle > --- INVENTORY -------- Ion Engine Small Storage Unit Beam Cannon Datajack [Rating: 19] Favorites ----------- Power Light Ion Engine Engine Light Ion Engine Propulsion Flight Unit Wheel Wheel Flight Unit Flight Unit Utility Signal Interpreter Device Seismic Detector Storage Small Storage Unit Processor Signal Interpreter Weapon Light Assault Rifle Energy Gun Improved Medium Laser Energy Cannon Beam Cannon Ballistic Gun Light Assault Rifle Special Melee Weapon Datajack Build | -11 -10 -10 -9 -8 -8 ------- Run | Yrd Mat Min Mat Mat Gar Slots Evolved 4 | . . . 2 2 . Power . | . . . . . . Propulsion 2 | . . . 1 1 . Utility 2 | . . . 1 1 . Weapon . | . . . . . . Parts Attached 40 | 8 1 11 11 1 8 Power 3 | 1 . 1 1 . . Engine 3 | 1 . 1 1 . . Core . | . . . . . . Reactor . | . . . . . . Propulsion 16 | 3 . 6 5 . 2 Treads . | . . . . . . Leg . | . . . . . . Wheel 5 | 3 . 2 . . . Hover . | . . . . . . Flight 11 | . . 4 5 . 2 Utility 7 | 2 1 . 3 1 . Device 3 | 1 . . 1 1 . Storage 1 | 1 . . . . . Processor 3 | . 1 . 2 . . Hackware . | . . . . . . Protection . | . . . . . . Artifact . | . . . . . . Weapon 14 | 2 . 4 2 . 6 Energy Gun 3 | 1 . . 1 . 1 Energy Cannon 2 | . . 1 . . 1 Ballistic Gun 7 | 1 . 3 1 . 2 Ballistic Cannon . | . . . . . . Launcher . | . . . . . . Special Weapon . | . . . . . . Impact Weapon . | . . . . . . Slashing Weapon . | . . . . . . Piercing Weapon . | . . . . . . Special Melee Weapon 2 | . . . . . 2 Unidentified Prototypes 3 | . . . 3 . . Parts Lost 17 | . . 3 3 . 11 Power 2 | . . . 1 . 1 Propulsion 7 | . . 2 1 . 4 Utility 2 | . . . 1 . 1 Weapon 6 | . . 1 . . 5 Highest Loss Streak 8 | . . 3 2 . 8 To Critical Strikes . | . . . . . . Average Slot Usage (%) 84 | . 100 83 97 81 65 Engine 11 | . 14 14 9 9 5 Wheel 8 | . 28 11 . . . Flight 18 | . . 14 33 27 21 Device 3 | . 12 . 10 9 5 Storage 1 | . 14 1 . . . Processor 15 | . 1 14 21 18 18 Energy Gun 4 | . 14 . 9 9 6 Energy Cannon 6 | . . 10 1 . . Ballistic Gun 13 | . 14 17 11 9 4 Naked Turns . | . . . . . . Heaviest Build 14 | 14 14 12 10 10 10 Greatest Support 26 | 26 20 26 13 13 17 Greatest Overweight (x) 3 | . . 3 1 . . Average Overweight (x) . | . . . . . . Largest Inventory Capacity 8 | 8 8 8 5 5 5 Average Capacity 5 | 6 8 5 5 5 5 Most Carried 5 | 1 2 5 5 4 5 Average Carried 3 | . 1 4 4 4 3 Final Capacity 8 | 8 8 5 5 5 5 Final Carried 5 | 1 2 5 4 4 3 Class Distribution -------------------- 79% | Mutant 17% | Scavenger-Mutant 3% | Scavenger-Sprinter Dominant Class ---------------- Mutant | -10/Materials Mutant | -10/Mines Scavenger-Mutant | -9/Materials Scavenger-Mutant | -8/Materials Mutant | -8/Garrison Resources | -11 -10 -10 -9 -8 -8 ----------- Run | Yrd Mat Min Mat Mat Gar Matter Collected 674 | 240 56 137 140 . 101 Remotely . | . . . . . . Salvage Created 802 | 119 95 181 318 . 89 Parts 72 | 6 13 16 25 . 12 Haulers Intercepted 1 | . . . 1 . . Recyclers Shooed 3 | 1 . 1 1 . . Parts Field Recycled . | . . . . . . Retrieved Matter . | . . . . . . Parts Self-Destructed . | . . . . . . Prevented . | . . . . . . Kills | -11 -10 -10 -9 -8 -8 ------- Run | Yrd Mat Min Mat Mat Gar Combat Hostiles Destroyed 29 | . 6 10 9 . 4 Guns 23 | . 6 4 9 . 4 Cannons 6 | . . 6 . . . Classes Destroyed 9 | 2 1 2 3 . 1 Worker 2 | . . 1 1 . . Tunneler 1 | 1 . . . . . Hauler 1 | . . . 1 . . Recycler 1 | 1 . . . . . Operator 1 | . . . 1 . . Watcher 1 | . . . 1 . . Swarmer 24 | . 6 9 6 . 3 Grunt 4 | . . 1 3 . . Programmer 1 | . . . . . 1 Best Kill Streak 6 | 2 6 3 6 . 3 Combat Bots Only 6 | . 6 3 6 . 3 Max Kills in Single Turn 2 | 1 2 1 2 . 1 Gunslinging 1 | . . . 1 . . Exploded . | . . . . . . Melee . | . . . . . . Uniques/NPCs Destroyed . | . . . . . . Combat | -11 -10 -10 -9 -8 -8 -------- Run | Yrd Mat Min Mat Mat Gar Hostile Shots Fired 210 | . 25 41 42 . 102 Missed 68 | . 8 10 16 . 34 Damage Taken 1705 | . 208 253 269 . 975 Core 711 | . 48 79 34 . 550 Absorbed by Shields . | . . . . . . Core Remaining (%) 80 | 100 . 49 91 . . Volleys Fired 89 | 7 12 23 22 . 25 Largest 2 | 2 2 2 2 . 2 Hottest 83 | 60 60 80 80 . 83 Shots Fired 159 | 14 24 45 44 . 32 Gun 140 | 14 24 31 41 . 30 Cannon 19 | . . 14 3 . 2 Launcher . | . . . . . . Special . | . . . . . . Kinetic 85 | 7 12 29 22 . 15 Thermal 46 | . . 14 22 . 10 Explosive . | . . . . . . Electromagnetic 28 | 7 12 2 . . 7 Robot Hit Streak 7 | 4 2 3 7 . 6 Robot Miss Streak 4 | 2 3 4 3 . 3 Penetration Max . | . . . . . . Secondary Targets 3 | . . 1 2 . . Max Gunslinging Chain 1 | . . 1 1 . . Shots Hit Robots 96 | 10 10 20 25 . 31 Core Hits 49 | 3 8 15 14 . 9 Critical Kills . | . . . . . . Critical Parts Destroyed . | . . . . . . Critical Strikes 2 | 1 . . 1 . . Burn 1 | . . . 1 . . Corrupt 1 | 1 . . . . . Melee Attacks 12 | . . . . . 12 Impact . | . . . . . . Slashing . | . . . . . . Piercing . | . . . . . . Sneak Attacks 2 | . . . . . 2 Combat Hostiles 2 | . . . . . 2 Follow-up Attacks . | . . . . . . Damage Inflicted 1133 | 109 101 243 421 . 259 Guns 975 | 109 101 138 368 . 259 Cannons 158 | . . 105 53 . . Explosions . | . . . . . . Melee . | . . . . . . Ramming . | . . . . . . Kinetic 611 | 42 58 126 182 . 203 Thermal 387 | . . 105 239 . 43 Explosive . | . . . . . . Electromagnetic 135 | 67 43 12 . . 13 Impact . | . . . . . . Slashing . | . . . . . . Piercing . | . . . . . . Highest Corruption 6 | . . . . . 6 Average Corruption 4 | . . . . . 4 Corruption Purged . | . . . . . . Corruption Blocked . | . . . . . . Effects 3 | . . . . . 3 Message Errors 1 | . . . . . 1 Matter Fused 1 | . . . . . 1 Data Loss (minor) 1 | . . . . . 1 Overload Shots . | . . . . . . Overflow Damage . | . . . . . . Projectiles . | . . . . . . Explosions . | . . . . . . Melee . | . . . . . . Knockbacks . | . . . . . . Impact . | . . . . . . Kinetic . | . . . . . . Secondary . | . . . . . . Self-Inflicted Damage . | . . . . . . Shots . | . . . . . . Rammed . | . . . . . . Targets Rammed . | . . . . . . Kicked . | . . . . . . Crushed . | . . . . . . Highest Temperature 262 | 40 40 262 100 . 51 Average Temperature 58 | 25 25 102 51 . 24 Received Heat Transfer 99 | . . 6 93 . . Siege Activations . | . . . . . . Robots Corrupted . | . . . . . . Combat Hostiles . | . . . . . . Parts Fried 1 | 1 . . . . . Impact Corruptions . | . . . . . . Robots Melted . | . . . . . . Combat Hostiles . | . . . . . . Parts Melted 2 | . . 2 . . . Heat Transferred 849 | . . 222 592 . 35 Parts Sabotaged . | . . . . . . Parts Stolen . | . . . . . . Parts Stripped . | . . . . . . Power Chain Reactions . | . . . . . . Alert | -11 -10 -10 -9 -8 -8 ------- Run | Yrd Mat Min Mat Mat Gar Peak Influence 569 | 10 206 214 569 231 222 Initial 231 | . 6 79 35 231 152 Average 147 | 3 124 110 279 231 179 Maximum Alert Level 2 | . 1 1 2 1 1 Low Security (%) 78 | 100 70 99 25 . 66 Level 1 16 | . 29 . 48 100 33 Level 2 4 | . . . 26 . . Level 3 . | . . . . . . Level 4 . | . . . . . . Level 5 . | . . . . . . High Security . | . . . . . . Max Security . | . . . . . . Squads Dispatched 4 | . 2 . 2 . . Investigation 1 | . 1 . . . . Extermination . | . . . . . . Reinforcement 3 | . 1 . 2 . . Assault . | . . . . . . Garrison . | . . . . . . Intercept . | . . . . . . Searches Triggered . | . . . . . . Construction Impeded . | . . . . . . Haulers Reinforced . | . . . . . . Active Scanning Responses . | . . . . . . Cargo Convoy Interrupts . | . . . . . . Stealth | -11 -10 -10 -9 -8 -8 --------- Run | Yrd Mat Min Mat Mat Gar Distress Signals 3 | . . . 3 . . Communications Jammed . | . . . . . . Distress Signals . | . . . . . . Times Spotted 49 | . 10 9 23 . 7 Peak Tracking Total 10 | . 6 3 10 . 4 Tactical Retreats 4 | . 1 . 3 . . Traps | -11 -10 -10 -9 -8 -8 ------- Run | Yrd Mat Min Mat Mat Gar Traps Triggered 1 | . . . . . 1 Indirectly . | . . . . . . Trap Hack Attempts . | . . . . . . Triggered . | . . . . . . Disarmed . | . . . . . . Reprogrammed . | . . . . . . Reused . | . . . . . . Traps Extracted . | . . . . . . Installed . | . . . . . . Triggered . | . . . . . . Machines | -11 -10 -10 -9 -8 -8 ---------- Run | Yrd Mat Min Mat Mat Gar Machines Disabled . | . . . . . . Max in Single Turn . | . . . . . . Machines Repaired . | . . . . . . Machines Dismantled . | . . . . . . Machines Sabotaged . | . . . . . . Overloaded Fab Kills . | . . . . . . Hacking | -11 -10 -10 -9 -8 -8 --------- Run | Yrd Mat Min Mat Mat Gar Machines Accessed 5 | . 1 2 1 1 . Terminals 3 | . . 2 1 . . Fabricators . | . . . . . . Repair Stations . | . . . . . . Recycling Units 1 | . 1 . . . . Scanalyzers . | . . . . . . Garrison Access 1 | . . . . 1 . Total Hacks 11 | . 3 4 3 1 . Successful 5 | . 2 2 . 1 . Failed 6 | . 1 2 3 . . Catastrophic . | . . . . . . Database Lockouts . | . . . . . . Manual . | . . . . . . Terminals 7 | . . 4 3 . . Fabricators . | . . . . . . Repair Stations . | . . . . . . Recycling Units 3 | . 3 . . . . Scanalyzers . | . . . . . . Garrison Access 1 | . . . . 1 . Terminal Hacks 2 | . . 2 . . . Record 1 | . . 1 . . . Dispatch Records 1 | . . 1 . . . Fabricator Hacks . | . . . . . . Repair Station Hacks . | . . . . . . Recycling Unit Hacks 2 | . 2 . . . . Report Inventory 1 | . 1 . . . . Retrieve Components 1 | . 1 . . . . Scanalyzer . | . . . . . . Garrison Access Hacks 1 | . . . . 1 . Unlock Access 1 | . . . . 1 . Unauthorized Hacks . | . . . . . . Terminals . | . . . . . . Fabricators . | . . . . . . Repair Stations . | . . . . . . Recycling Units . | . . . . . . Scanalyzers . | . . . . . . Garrison Access . | . . . . . . Data Cores Recovered 1 | . . . 1 . . Used . | . . . . . . Hacking Detections 3 | . 1 1 1 . . Full Trace Events 1 | . 1 . . . . Feedback Events . | . . . . . . Feedback Blocked . | . . . . . . Robot Schematics Acquired . | . . . . . . Robots Built . | . . . . . . Authchips . | . . . . . . Time . | . . . . . . Total Robot Build Rating . | . . . . . . Part Schematics Acquired . | . . . . . . Parts Built . | . . . . . . Authchips . | . . . . . . Time . | . . . . . . Total Part Build Rating . | . . . . . . Parts Repaired . | . . . . . . Time . | . . . . . . Parts Recycled . | . . . . . . Recycled Matter . | . . . . . . Retrieved Matter . | . . . . . . Retrieved Components 2 | . 2 . . . . Parts Scanalyzed . | . . . . . . Part Schematics Acquired . | . . . . . . Parts Damaged . | . . . . . . Bothacking | -11 -10 -10 -9 -8 -8 ------------ Run | Yrd Mat Min Mat Mat Gar Used RIF Installer . | . . . . . . Robots Hacked 1 | . . . . . 1 Non-combat . | . . . . . . Combat 1 | . . . . . 1 Robot Hacks Applied 1 | . . . . . 1 parse_system 1 | . . . . . 1 Relay Couplers Released . | . . . . . . Fabnet Peak Effective % . | . . . . . . Robots Rewired . | . . . . . . Allies Hacked . | . . . . . . Hacks Repelled . | . . . . . . Allies | -11 -10 -10 -9 -8 -8 -------- Run | Yrd Mat Min Mat Mat Gar Total Allies . | . . . . . . Largest Group . | . . . . . . Highest-Rated Group . | . . . . . . Highest-Rated Ally . | . . . . . . Total Orders . | . . . . . . Ally Attacks . | . . . . . . Total Damage . | . . . . . . Kills . | . . . . . . Allies Corrupted . | . . . . . . Allies Melted . | . . . . . . Intel | -11 -10 -10 -9 -8 -8 ------- Run | Yrd Mat Min Mat Mat Gar Robot Analysis Total . | . . . . . . Derelict Logs Recovered 1 | . . 1 . . . Drone Launches . | . . . . . . Drone Recoveries . | . . . . . . Exploration | -11 -10 -10 -9 -8 -8 ------------- Run | Yrd Mat Min Mat Mat Gar Turns Passed 1249 | 74 92 663 234 10 176 Spaces Moved 1549 | 50 64 868 420 25 122 Core 15 | 3 . 4 . . 8 Treads . | . . . . . . Legs . | . . . . . . Wheels 406 | 47 64 295 . . . Hover . | . . . . . . Flight 1128 | . . 569 420 25 114 Fastest Speed 31 | 50 80 37 34 34 31 Average Speed 53 | 85 80 62 34 34 35 Slowest Speed 200 | 100 80 200 117 34 50 Overloaded Moves . | . . . . . . Propulsion Burnouts . | . . . . . . Robots Hopped 7 | . . 4 2 . 1 Cave-ins Triggered . | . . . . . . Exploration Rate (%) 27 | 3 20 100 27 3 13 Regions Visited 5 Branch Regions 1 Pre-discovered Areas . | . . . . . . Known Exits Taken 4 | . 1 1 1 1 . Unknown Exits Taken 1 | 1 . . . . . Scrap Searched 1 | . . 1 . . . Spaces Dug . | . . . . . . Terrain Destroyed . | . . . . . . Melee . | . . . . . . Projectile . | . . . . . . AOE . | . . . . . . Terrain Rammed . | . . . . . . Walls Destroyed . | . . . . . . Machines Disabled . | . . . . . . Actions | -11 -10 -10 -9 -8 -8 --------- Run | Yrd Mat Min Mat Mat Gar Total 1795 | 65 82 944 464 25 215 Wait 72 | . 5 39 3 . 25 Move 1530 | 49 63 859 415 24 120 Hop 7 | . . 4 2 . 1 Pick Up 5 | . . 1 2 . 2 Fast Attach 28 | 8 1 5 8 1 5 Attach 12 | . . 4 3 . 5 Detach 13 | 1 1 5 4 . 2 Swap 2 | . . 2 . . . Drop 7 | . . 2 5 . . Fire 89 | 7 12 23 22 . 25 Melee 12 | . . . . . 12 Ram . | . . . . . . Kick . | . . . . . . Crush . | . . . . . . Escape Stasis 18 | . . . . . 18 Rewire . | . . . . . . Trap . | . . . . . . Miscellaneous . | . . . . . . Route ------- -11/Scrapyard -10/Materials -10/Mines (discovered 2 exits: *Mat x2) -9/Materials -8/Materials -8/Garrison History --------- Turn | Location | Event 13 | -11/Scrapyard | Discovered new exit (range 15) 75 | -11/Scrapyard | Entered Materials 163 | -10/Materials | Discovered new exit (range 6) 166 | -10/Materials | Identified exit to Mines 167 | -10/Materials | Entered Mines 209 | -10/Mines | Lost 3 parts (2n1w) 216 | -10/Mines | Met a Derelict bent on vengeance 302 | -10/Mines | Build established: Mutant 362 | -10/Mines | Discovered new exit (range 6) 383 | -10/Mines | Identified exit to Materials 611 | -10/Mines | Core integrity fell below 50% 830 | -10/Mines | Entered Materials 830 | -9/Materials | Evolved 2 slots: Propulsion x1, Utility x1 1043 | -9/Materials | Discovered new exit (range 10) 1046 | -9/Materials | Identified exit to Materials 1064 | -9/Materials | Entered another Materials area 1064 | -8/Materials | Evolved 2 slots: Propulsion x1, Utility x1 1074 | -8/Materials | Identified exit to Garrison 1074 | -8/Materials | Entered Garrison 1102 | -8/Garrison | Triggered checkpoint 1196 | -8/Garrison | Core integrity fell below 50% 1210 | -8/Garrison | Core integrity fell below 20% 1226 | -8/Garrison | Lost 8 parts (1p3n1u3w) 1250 | -8/Garrison | Destroyed by P-60 Hacker with Shock Rifle Last Messages --------------- P-60 Hacker destroyed. Beam Cannon destroyed. P-60 Hacker resets P-60 Hacker, system corruption cleaned. Imp. Terrain Scanner destroyed. Imp. Assault Rifle destroyed. Jacked P-60 Hacker... System corrupted: Component data lost. Jacked P-60 Hacker... Acquired Remote Datajack. Acquired Shock Rifle. P-60 Hacker resets P-60 Hacker, system corruption cleaned. Acquired 41 matter. P-60 Hacker resets P-60 Hacker, system corruption cleaned. Datajack destroyed. VYPN%0FOJ6KVXTLUTITA TU0G Imp. Flight Unit destroyed. Shock Rifle destroyed. Acquired Lgt. Assault Rifle. Acquired Flight Unit. System corrupted: Matter fused (-7). Map ----- +----------------------------------------------------+ | ?????????????????????????????????????????????????? | | ?????????????????????????????????????????????????? | | ?????????????????????????????????????????????????? | | ?????????????????????????????????????????????????? | | ?????????????????????????????????????????????????? | | ?????????????????????????????????????????????????? | | ?????????????????????????????????????????????????? | | ?????????????????????????????????????????????????? | | ?????????????????????????????????????????????????? | | ?????????????????????????????????????????????????? | | ?????????????????????????????????????????????????? | | ????????????????????????####?????????????????????? | | ???????????????????????? #?????????????????????? | | ???????????????????????? #?????????????????????? | | ????????????????????????# #?????????????????????? | | ????????????????????????# #?????????????????????? | | ????????????????????????# #?????????????????????? | | ????????????????????????# #?????????????????????? | | ????????????????????????# #?????????????????????? | | ????????????????????????# #?????????????????????? | | ????????????????????????# #?????????????????????? | | ????????????????????????# #?????????????????????? | | ????????????????????????# #?????????????????????? | | ????????????????????????# #?????????????????????? | | ????????????????####+#### *#?????????????????????? | | ????????????# + h *p @%#?????????????????????? | | ????????????????# #######* ############??????????? | | ????????????????# #?????# #??????????? | | ????????????????# ###???# #??????????? | | ????????????????# "#####p######### #??????????? | | ????????????????# "%+ #???????# #??????????? | | ????????????????# "##### #???????#####??????????? | | ????????????????# ###???# #??????????????????????? | | ????????????????# #?????" #??????????????????????? | | ????????????????# #?????T ???????????????????????? | | ????????????????# #?????""???????????????????????? | | ??????????????### #??????#???????????????????????? | | ??????????????#"# #??????????????????????????????? | | ??????????????#" #??????????????????????????????? | | ??????????????#" #??????????????????????????????? | | ??????????????#" #??????????????????????????????? | | ??????????????#"# #??????????????????????????????? | | ??????????????### #??????????????????????????????? | | ?????????????#### ####???????????????????????????? | | ?????????????# # #%*#???????????????????????????? | | ?????????????# + +!!#???????????????????????????? | | ?????????????##+#=#+##???????????????????????????? | | ?????????????# !# #! #???????????????????????????? | | ?????????????# # + #???????????????????????????? | | ?????????????#########???????????????????????????? | +----------------------------------------------------+ Best States ------------- Heat Dissipation 31 Energy Generation 10 Energy Capacity 250 Matter Stores 300 Matter Capacity 300 Sight Range 18 Terrain Scan Range 16 Terrain Scan Density 10 Evasion (%) 63 Targeting Accuracy 5 Item Schematics ----------------- None Robot Schematics ------------------ None Fabricated ------------ Nothing Alien Tech Used ----------------- None Achievements -------------- None Challenges ------------ None Game ------ Seed HybridGravityGravjet Manual? 0 Play Time 00:34:49 Cumulative 5.3 hours Start 2024.04.09 @ 17:17:02 End 2024.04.09 @ 19:19:53 Sessions 1 Manual Loads 0 Difficulty Rogue Special Mode None Game No. 10 Rogue 10 Adventurer 0 Explorer 0 Win Type - Total 0 Types 0/0/0/0/0/0/0/0/0 Lore% 11 Gallery% 12 Achievement% 11 Wizard Run 0 Options --------- Layout 0 ASCII 0 Keyboard 1 Movement Numpad Keybinds 0 Fullscreen 1 Font 18/SmallcapsGlow Map View 76x50 Zoom Use 0% Tactical HUD 0 Map Filters NONE Filters NONE Steam 1 RUN: c25a9712-4bdc-4a2d-8e34-1dc78edca29d